bitfinex-derivatives/quotes_BTCF0:USTF0_20241203
["timestamp","ask_amount","ask_price","bid_price","bid_amount"]
[1733249037853,0.05218,95788.0,95787.0,0.08556996]
[1733249038963,0.052179,95793.0,95792.0,0.052177]
[1733249039353,0.052179,95793.0,95792.0,0.052217]
[1733249040350,0.14648,95795.0,95794.0,0.052177]
[1733249040550,0.50728,95803.0,95802.0,0.052172]
[1733249040755,0.559452,95803.0,95802.0,0.052172]
[1733249040949,0.412972,95803.0,95802.0,1.552212]
[1733249041152,0.412972,95803.0,95802.0,0.052212]
[1733249041357,0.14648,95804.0,95802.0,4e-05]
[1733249041561,0.14648,95804.0,95803.0,0.052172]
[1733249041748,0.198651,95804.0,95803.0,0.052212]
[1733249043353,0.199651,95804.0,95803.0,0.052212]
[1733249043554,0.14748,95804.0,95803.0,0.052212]
[1733249043858,0.14848,95804.0,95803.0,0.052212]
[1733249044059,0.001,95804.0,95803.0,0.052212]
[1733249044265,0.002,95804.0,95803.0,0.052212]
[1733249044463,0.002,95804.0,95803.0,0.08206549]
[1733249045361,0.002,95804.0,95803.0,1.58206549]
[1733249046263,0.06154206,95827.0,95816.0,0.052165]
[1733249046264,0.14648,95817.0,95816.0,0.052165]
[1733249046455,0.0318,95827.0,95803.0,1.58206549]
[1733249046456,0.0318,95827.0,95814.0,0.3608]
[1733249046660,0.75616001,95828.0,95816.0,4e-05]
[1733249046963,0.198639,95827.0,95826.0,0.052159]
[1733249047456,0.052163,95822.0,95821.0,0.052161]
[1733249049059,0.053163,95822.0,95821.0,0.053161]
[1733249050364,0.058163,95822.0,95821.0,0.053161]
[1733249052266,0.15423397,95822.0,95821.0,0.053161]
[1733249053070,0.37043279,95822.0,95821.0,0.053161]
[1733249053273,0.46650376,95822.0,95821.0,0.053161]
[1733249053566,0.15424034,95822.0,95821.0,0.001]
[1733249053764,0.15424034,95822.0,95810.0,0.0026]
[1733249053966,0.15424034,95822.0,95800.0,0.3608]
[1733249053967,0.05217,95806.0,95805.0,0.0026]
[1733249054169,0.31228621,95806.0,95800.0,0.36184]
[1733249054369,0.36445921,95801.0,95800.0,0.3608]
[1733249054564,0.14825034,95801.0,95800.0,0.3608]
[1733249054867,0.39568409,95801.0,95800.0,0.412973]
[1733249055163,0.14825034,95801.0,95800.0,0.412973]
[1733249055562,0.14825034,95801.0,95800.0,0.3608]
[1733249055866,0.14825034,95801.0,95790.0,0.0026]
[1733249055867,0.052178,95791.0,95790.0,0.0026]
[1733249056069,0.052178,95791.0,95777.0,0.0105]
[1733249056070,0.50728,95791.0,95780.0,0.0026]
[1733249056364,0.09610337,95790.0,95780.0,0.0026]
[1733249056564,0.052181,95785.0,95780.0,0.0026]
[1733249056766,0.052181,95785.0,95783.0,0.052182]
[1733249057078,0.052181,95785.0,95784.0,0.00756581]
[1733249057364,0.052181,95785.0,95774.0,0.0026]
[1733249057365,0.052186,95776.0,95774.0,0.0026]
[1733249057565,0.871829,95776.0,95769.0,0.05219]
[1733249057761,0.65556937,95776.0,95772.0,0.052189]
[1733249057962,0.65556937,95776.0,95774.0,0.052187]
[1733249058855,0.96779384,95776.0,95774.0,0.052187]
[1733249059065,0.65556937,95776.0,95774.0,0.052187]
[1733249059566,0.560466,95776.0,95775.0,0.00610856]
[1733249059769,0.561466,95776.0,95775.0,0.01510856]
[1733249071881,0.559266,95776.0,95775.0,0.01510856]
[1733249073375,0.414986,95776.0,95775.0,0.01510856]
[1733249073675,0.559266,95776.0,95775.0,0.01510856]
[1733249074778,0.054186,95776.0,95775.0,0.01510856]
[1733249075078,0.198466,95776.0,95775.0,0.06729556]
[1733249075472,0.054186,95776.0,95775.0,0.06729556]
[1733249076079,0.054186,95776.0,95775.0,0.13069556]
[1733249076680,0.414986,95776.0,95775.0,0.01510856]
[1733249077576,0.559266,95776.0,95775.0,0.01510856]
[1733249086481,0.6553892,95776.0,95775.0,0.01510856]
[1733249089480,0.76771595,95776.0,95775.0,0.01510856]
[1733249090584,0.76772759,95776.0,95775.0,0.01510856]
[1733249091088,0.76776759,95776.0,95775.0,0.01510856]
[1733249093786,0.76776759,95776.0,95765.0,0.0026]
[1733249093992,0.052195,95761.0,95760.0,0.0026]
[1733249094198,0.052198,95755.0,95754.0,0.0026]
[1733249094390,0.196515,95761.0,95753.0,0.0643]
[1733249094604,0.412998,95754.0,95753.0,0.0643]
[1733249094995,0.50925918,95754.0,95753.0,0.0325]
[1733249095494,0.50926145,95754.0,95753.0,0.0325]
[1733249095690,0.50926145,95754.0,95753.0,0.0365]
[1733249095891,0.14846145,95754.0,95753.0,0.0365]
[1733249096091,0.05231676,95754.0,95753.0,0.088699]
[1733249096493,0.14845481,95754.0,95753.0,0.0365]
[1733249096693,0.05231676,95754.0,95753.0,0.0365]
[1733249097290,0.05231676,95754.0,95753.0,0.0385]
[1733249098292,0.05231676,95754.0,95753.0,0.090699]
[1733249098689,0.05231676,95754.0,95753.0,0.0385]
[1733249098894,0.05231676,95754.0,95753.0,0.006]
[1733249102103,0.05231676,95754.0,95753.0,0.058199]
[1733249102505,0.3608,95786.0,95753.0,0.3668]
[1733249102702,0.05219,95772.0,95771.0,0.052189]
[1733249104494,0.052182,95785.0,95784.0,0.052181]
[1733249104697,0.31240548,95785.0,95784.0,0.052182]
[1733249104901,0.0961127,95785.0,95779.0,0.3608]
[1733249105238,0.052181,95787.0,95779.0,0.3608]
[1733249105530,0.052181,95787.0,95786.0,0.052221]
[1733249106128,0.14828753,95787.0,95786.0,0.052221]
[1733249106337,0.052181,95787.0,95786.0,0.052221]
[1733249106533,0.052181,95787.0,95786.0,4e-05]
[1733249106534,0.053181,95787.0,95786.0,4e-05]
[1733249107821,0.052181,95787.0,95786.0,4e-05]
[1733249108020,0.052181,95787.0,95786.0,0.00104]
[1733249108427,0.19787483,95800.0,95786.0,4e-05]
[1733249108428,0.14428,95798.0,95786.0,4e-05]
[1733249108727,0.14428,95798.0,95786.0,0.052221]
[1733249108728,0.001,95787.0,95786.0,0.052221]
[1733249108918,0.001,95787.0,95786.0,0.052181]
[1733249109636,0.052178,95792.0,95791.0,0.052178]
[1733249109813,0.052178,95792.0,95791.0,0.412978]
[1733249110444,0.17488285,95800.0,95791.0,0.3608]
[1733249110623,0.36457148,95813.0,95791.0,0.3608]
[1733249110624,0.052175,95797.0,95796.0,0.052175]
[1733249110935,0.052177,95793.0,95792.0,0.084678]
[1733249111116,0.05217,95807.0,95791.0,0.3608]
[1733249111117,0.052178,95792.0,95791.0,0.3608]
[1733249111315,0.05218,95787.0,95786.0,0.006]
[1733249111518,0.05218,95787.0,95786.0,0.056181]
[1733249111702,0.05218,95787.0,95786.0,0.052181]
[1733249112223,0.052184,95781.0,95780.0,0.46697204]
[1733249113911,0.052179,95790.0,95789.0,0.052178]
[1733249114140,0.08171355,95790.0,95789.0,0.052178]
[1733249115309,0.3608,95792.0,95791.0,0.052178]
[1733249115606,0.3608,95792.0,95791.0,0.052218]
[1733249115809,0.412978,95792.0,95791.0,0.052218]
[1733249117008,0.412978,95792.0,95791.0,4e-05]
[1733249118203,0.413978,95792.0,95791.0,4e-05]
[1733249118607,0.414978,95792.0,95791.0,4e-05]
[1733249118808,0.418978,95792.0,95791.0,4e-05]
[1733249119605,0.44855167,95792.0,95791.0,4e-05]
[1733249120306,0.54465947,95792.0,95791.0,4e-05]
[1733249120704,1.0012016,95792.0,95791.0,4e-05]
[1733249120913,0.656966,95792.0,95791.0,4e-05]
[1733249121415,0.656966,95792.0,95780.0,0.0026]
[1733249121416,0.052184,95781.0,95780.0,0.0026]
[1733249121603,0.05219,95770.0,95769.0,0.0026]
[1733249121804,0.05219,95770.0,95762.0,0.0105]
[1733249121805,0.2403478,95770.0,95762.0,0.0026]
[1733249122014,0.052192,95765.0,95764.0,0.052192]
[1733249122614,0.14424,95770.0,95757.0,0.03132153]
[1733249122615,0.36144,95773.0,95757.0,0.03028153]
[1733249122919,0.09612285,95772.0,95771.0,0.052189]
[1733249123307,0.09611911,95772.0,95769.0,0.007]
[1733249123509,0.412988,95773.0,95769.0,0.007]
[1733249123819,0.412988,95773.0,95772.0,0.052189]
[1733249124007,0.50910679,95773.0,95772.0,0.052189]
[1733249125113,0.50910679,95773.0,95772.0,0.054189]
[1733249125709,0.31186648,95780.0,95772.0,0.055189]
[1733249126008,0.196462,95784.0,95783.0,0.052183]
[1733249126511,0.052182,95784.0,95783.0,0.052183]
[1733249127132,0.09611057,95790.0,95779.0,4e-05]
[1733249127413,0.40816501,95789.0,95788.0,0.05218]
[1733249127613,0.40816501,95789.0,95781.0,0.052184]
[1733249127614,0.412978,95791.0,95782.0,0.3917]
[1733249127818,0.412978,95791.0,95790.0,0.052179]
[1733249129420,0.3608,95791.0,95790.0,0.053179]
[1733249130112,0.3608,95791.0,95790.0,0.055179]
[1733249131617,0.3608,95791.0,95790.0,0.054179]
[1733249131820,0.3608,95791.0,95790.0,0.08574771]
[1733249132517,0.412978,95791.0,95790.0,0.055179]
[1733249132724,0.412978,95791.0,95790.0,0.003]
[1733249133424,0.5387987,95791.0,95790.0,0.002]
[1733249133618,0.53879837,95791.0,95790.0,0.002]
[1733249133814,0.53979837,95791.0,95790.0,0.001]
[1733249134125,0.48762037,95791.0,95779.0,4e-05]
[1733249134325,0.052184,95780.0,95779.0,4e-05]
[1733249134825,0.052184,95780.0,95779.0,0.052225]
[1733249136025,0.052184,95780.0,95779.0,4e-05]
[1733249136624,0.053184,95780.0,95779.0,4e-05]
[1733249137422,0.08363588,95780.0,95779.0,4e-05]
[1733249137629,0.17975105,95780.0,95779.0,4e-05]
[1733249137828,0.17875105,95780.0,95779.0,4e-05]
[1733249138124,0.17875105,95780.0,95761.0,0.0105]
[1733249138125,0.05219,95769.0,95761.0,0.0105]
[1733249138318,0.052191,95767.0,95757.0,0.0026]
[1733249138512,0.052191,95767.0,95763.0,0.052193]
[1733249138715,0.052191,95767.0,95757.0,0.0026]
[1733249138914,0.052191,95767.0,95760.0,0.052195]
[1733249139117,0.052191,95767.0,95757.0,0.0026]
[1733249139317,0.052191,95767.0,95766.0,0.05375812]
[1733249139530,0.052191,95767.0,95766.0,0.00156612]
[1733249139926,0.196471,95767.0,95766.0,0.00156612]
[1733249140422,0.196471,95767.0,95766.0,0.05375812]
[1733249141023,0.196471,95767.0,95766.0,0.06175812]
[1733249142126,0.14428,95767.0,95766.0,0.06175812]
[1733249142321,0.052191,95767.0,95766.0,0.06175812]
[1733249142523,0.29260217,95767.0,95766.0,0.06175812]
[1733249142829,0.09613117,95767.0,95766.0,0.06175812]
[1733249143017,0.052186,95778.0,95774.0,0.052187]
[1733249143326,0.052186,95778.0,95766.0,0.06175812]
[1733249143327,0.052186,95778.0,95777.0,0.052226]
[1733249144124,0.14830318,95778.0,95777.0,0.052226]
[1733249144628,0.14830318,95778.0,95777.0,4e-05]
[1733249144830,0.14830318,95778.0,95777.0,0.052226]
[1733249145927,0.052186,95778.0,95777.0,0.052226]
[1733249146325,0.14428,95780.0,95779.0,0.052185]
[1733249146628,0.14428,95780.0,95779.0,0.052225]
[1733249146827,0.29257914,95780.0,95779.0,0.052225]
[1733249147535,0.29357914,95780.0,95779.0,4e-05]
[1733249147835,0.40750388,95780.0,95779.0,4e-05]
[1733249148824,0.63834994,95780.0,95779.0,4e-05]
[1733249149029,0.29458519,95780.0,95779.0,4e-05]
[1733249149435,0.29458256,95780.0,95779.0,0.052225]
[1733249149732,0.198464,95780.0,95779.0,4e-05]
[1733249150035,0.054184,95780.0,95779.0,4e-05]
[1733249150225,0.198464,95780.0,95779.0,4e-05]
[1733249150639,0.198464,95780.0,95779.0,0.052225]
[1733249150932,0.002,95780.0,95779.0,0.413025]
[1733249151333,0.052177,95794.0,95793.0,0.052177]
[1733249151830,0.052177,95794.0,95793.0,0.052217]
[1733249152830,0.060177,95794.0,95793.0,0.053217]
[1733249153331,0.056177,95794.0,95793.0,0.052217]
[1733249153535,0.060177,95794.0,95793.0,0.052217]
[1733249154147,0.058177,95794.0,95793.0,4e-05]
[1733249154436,0.418977,95794.0,95793.0,4e-05]
[1733249154626,0.51508378,95794.0,95793.0,4e-05]
[1733249155030,0.418977,95794.0,95793.0,4e-05]
[1733249155639,0.559257,95794.0,95793.0,4e-05]
[1733249155944,0.566257,95794.0,95793.0,0.00104]
[1733249156433,0.557257,95794.0,95793.0,4e-05]
[1733249156634,0.567257,95794.0,95793.0,0.00104]
[1733249157735,0.66336434,95794.0,95793.0,4e-05]
[1733249157932,0.61708433,95794.0,95793.0,0.00104]
[1733249158331,0.97788433,95794.0,95793.0,0.00104]
[1733249158841,0.66536434,95794.0,95793.0,0.00104]
[1733249159140,0.52108434,95794.0,95793.0,0.00104]
[1733249159435,0.51708434,95794.0,95793.0,4e-05]
[1733249159827,0.51308434,95794.0,95793.0,4e-05]
[1733249160031,0.52108434,95794.0,95793.0,0.00104]
[1733249160737,0.52008434,95794.0,95793.0,0.00104]
[1733249161041,0.51808434,95794.0,95793.0,0.00104]
[1733249161935,0.51808434,95794.0,95782.0,0.0026]
[1733249161936,0.46590734,95794.0,95782.0,0.0026]
[1733249162238,0.46590734,95794.0,95776.0,0.0026]
[1733249162239,0.052186,95777.0,95776.0,0.0026]
[1733249162445,0.052191,95767.0,95765.0,0.0026]
[1733249162646,0.65853834,95767.0,95755.0,0.0026]
[1733249162835,0.77122329,95767.0,95756.0,0.052197]
[1733249163345,0.77122329,95767.0,95755.0,0.0026]
[1733249163838,0.77122329,95767.0,95766.0,0.00656612]
[1733249164045,0.41042329,95767.0,95766.0,0.00656612]
[1733249164241,0.41042329,95767.0,95766.0,0.06175812]
[1733249164445,0.54531376,95767.0,95766.0,0.06175812]
[1733249164744,0.29773834,95767.0,95766.0,0.06175812]
[1733249164944,0.562431,95767.0,95766.0,0.00956612]
[1733249165153,0.201631,95767.0,95766.0,0.00956612]
[1733249167542,0.201631,95767.0,95766.0,0.06175812]
[1733249167746,0.052189,95771.0,95766.0,0.37036612]
[1733249168052,0.052185,95780.0,95779.0,0.052185]
[1733249168451,0.052185,95780.0,95779.0,0.052225]
[1733249169647,0.053185,95780.0,95779.0,0.052225]
[1733249169942,0.053185,95780.0,95779.0,0.08204649]
[1733249170249,0.054185,95780.0,95779.0,4e-05]
[1733249176143,0.002,95780.0,95779.0,0.052225]
[1733249177448,0.054184,95780.0,95779.0,0.052225]
[1733249177954,0.002,95780.0,95779.0,0.052225]
[1733249178662,0.054184,95780.0,95779.0,0.052225]
[1733249179351,0.054184,95780.0,95779.0,4e-05]
[1733249179746,0.054184,95780.0,95779.0,0.052225]
[1733249180149,0.15029862,95780.0,95779.0,0.083175]
[1733249182142,0.09811462,95780.0,95779.0,0.083175]
[1733249182854,0.15029862,95780.0,95779.0,0.083175]
[1733249183482,0.09811462,95780.0,95779.0,0.083175]
[1733249183858,0.09810248,95780.0,95779.0,0.083175]
[1733249184250,0.4106717,95780.0,95779.0,0.083175]
[1733249184445,0.09810248,95780.0,95779.0,0.083175]
[1733249186763,0.09810248,95780.0,95779.0,0.114075]
[1733249187055,0.002,95780.0,95779.0,0.114075]
[1733249193869,0.002,95780.0,95779.0,0.13496182]
[1733249199564,0.002,95780.0,95779.0,0.16536182]
[1733249199958,0.31456922,95780.0,95779.0,0.16536182]
[1733249200164,0.09818607,95780.0,95779.0,0.16536182]
[1733249200466,0.41075529,95780.0,95779.0,0.16536182]
[1733249200671,0.09818607,95780.0,95779.0,0.16536182]
[1733249201563,0.002,95780.0,95779.0,0.16536182]
[1733249202166,0.0314,95812.0,95779.0,0.11317682]
[1733249202368,0.09612779,95805.0,95804.0,0.052171]
[1733249202569,0.09611488,95809.0,95805.0,0.052171]
[1733249202862,0.1486,95810.0,95805.0,0.052171]
[1733249202863,0.12941455,95806.0,95805.0,0.052171]
[1733249203067,0.052174,95801.0,95800.0,0.052173]
[1733249203273,0.1486,95801.0,95794.0,0.0026]
[1733249203467,0.052179,95791.0,95790.0,0.052178]
[1733249204071,0.052181,95787.0,95784.0,0.052182]
[1733249204271,0.052181,95787.0,95785.0,0.052181]
[1733249204473,0.0304,95786.0,95785.0,0.052181]
[1733249204773,0.052183,95782.0,95781.0,0.052184]
[1733249204970,0.052184,95780.0,95779.0,0.052184]
[1733249207673,0.052184,95780.0,95779.0,0.03094]
[1733249208080,0.412984,95780.0,95779.0,0.03094]
[1733249208265,0.05219,95770.0,95769.0,0.05219]
[1733249208467,0.1486,95772.0,95763.0,0.052193]
[1733249208670,0.1486,95772.0,95759.0,0.0026]
[1733249208671,0.052192,95766.0,95764.0,0.052193]
[1733249209982,0.09612529,95765.0,95764.0,0.058193]
[1733249210176,0.40877123,95765.0,95764.0,0.058193]
[1733249210377,0.09612529,95765.0,95764.0,0.058193]
[1733249211578,0.09612529,95765.0,95764.0,0.006]
[1733249211877,0.09712529,95765.0,95764.0,0.009]
[1733249214698,0.3136479,95765.0,95764.0,0.009]
[1733249214885,0.67418214,95765.0,95764.0,0.009]
[1733249215074,0.45793367,95765.0,95764.0,0.009]
[1733249215580,0.77031581,95765.0,95764.0,0.009]
[1733249215783,0.45793367,95765.0,95764.0,0.009]
[1733249216080,0.09713367,95765.0,95764.0,0.009]
[1733249216279,0.24577367,95765.0,95764.0,0.009]
[1733249216470,0.001,95765.0,95764.0,0.009]
[1733249217082,0.001,95765.0,95764.0,1.509]
[1733249217592,0.3608,95807.0,95764.0,1.509]
[1733249217593,0.200814,95800.0,95799.0,0.052173]
[1733249217783,0.052174,95800.0,95799.0,0.052173]
[1733249218099,0.052174,95800.0,95795.0,0.3608]
[1733249218100,0.052172,95802.0,95795.0,0.3608]
[1733249218390,0.052172,95802.0,95801.0,4e-05]
[1733249219789,0.061172,95802.0,95801.0,0.00104]
[1733249220583,0.009,95802.0,95801.0,0.00104]
[1733249221380,0.015,95802.0,95801.0,0.00204]
[1733249222690,0.14632,95824.0,95813.0,0.052166]
[1733249222992,0.14632,95824.0,95806.0,0.0026]
[1733249222993,0.052169,95807.0,95806.0,0.0026]
[1733249223199,0.052169,95807.0,95801.0,0.002]
[1733249223200,0.052172,95802.0,95801.0,0.002]
[1733249223996,0.052172,95802.0,95801.0,0.001]
[1733249224178,0.052172,95802.0,95791.0,0.0026]
[1733249224382,0.052172,95802.0,95772.0,0.0322]
[1733249224383,0.05218,95787.0,95786.0,0.0026]
[1733249224582,0.05218,95787.0,95782.0,0.052183]
[1733249224883,0.05218,95787.0,95778.0,0.03075797]
[1733249225089,0.052186,95777.0,95776.0,0.00364]
[1733249225289,0.052187,95775.0,95772.0,0.052188]
[1733249225596,0.052187,95775.0,95766.0,0.0026]
[1733249225597,0.052191,95768.0,95766.0,0.0026]
[1733249225889,0.14632,95778.0,95762.0,0.052194]
[1733249225890,0.052193,95763.0,95762.0,0.052194]
[1733249227491,0.11509898,95770.0,95760.0,0.3608]
[1733249227688,0.052195,95761.0,95760.0,0.3608]
[1733249228190,0.052195,95761.0,95760.0,0.412995]
[1733249228886,0.052195,95761.0,95760.0,0.426995]
[1733249229796,0.05219,95770.0,95769.0,0.052189]
[1733249230094,0.05219,95770.0,95769.0,0.052229]
[1733249230095,0.19851,95770.0,95769.0,0.052229]
[1733249230292,0.31238214,95778.0,95769.0,4e-05]
[1733249230588,0.3608,95794.0,95782.0,0.052183]
[1733249230589,0.198503,95783.0,95782.0,0.052183]
[1733249230807,0.09610966,95783.0,95782.0,0.052183]
[1733249230999,0.052183,95783.0,95782.0,0.052223]
[1733249231792,0.053183,95783.0,95782.0,4e-05]
[1733249231998,0.055183,95783.0,95782.0,4e-05]
[1733249232386,0.055183,95783.0,95782.0,0.052223]
[1733249232585,0.003,95783.0,95782.0,0.052223]
[1733249232890,0.003,95783.0,95782.0,0.084623]
[1733249235592,0.39492,95803.0,95783.0,0.052183]
[1733249235795,0.1482673,95802.0,95801.0,0.412972]
[1733249236594,0.052176,95797.0,95796.0,0.052175]
[1733249236899,0.052176,95795.0,95794.0,0.3608]
[1733249237403,0.052179,95790.0,95789.0,0.0026]
[1733249237586,0.14632,95797.0,95788.0,0.05218]
[1733249237587,0.052181,95789.0,95788.0,0.05218]
[1733249239699,0.052182,95785.0,95784.0,0.052182]
[1733249240495,0.004,95789.0,95788.0,0.05218]
[1733249241002,0.002,95789.0,95788.0,0.05218]
[1733249241201,0.052169,95808.0,95788.0,0.05218]
[1733249241393,0.052169,95808.0,95799.0,0.3608]
[1733249241595,0.14632,95810.0,95809.0,0.052168]
[1733249241791,0.14632,95810.0,95807.0,4e-05]
[1733249241792,0.50759898,95830.0,95808.0,0.3608]
[1733249242000,0.50759898,95830.0,95824.0,0.052159]
[1733249242001,0.05216,95825.0,95824.0,0.052159]
[1733249243996,0.05416,95825.0,95824.0,0.053159]
[1733249244192,0.05416,95825.0,95824.0,0.001]
[1733249244504,0.14632,95827.0,95819.0,0.052163]
[1733249244806,0.052162,95820.0,95819.0,0.052163]
[1733249246504,0.052162,95820.0,95819.0,0.053163]
[1733249247097,0.054162,95820.0,95819.0,0.053163]
[1733249247609,0.054162,95820.0,95819.0,0.001]
[1733249247610,0.059162,95820.0,95819.0,0.001]
[1733249247809,0.51604067,95820.0,95819.0,0.001]
[1733249248501,0.51604067,95820.0,95819.0,0.053163]
[1733249248910,0.059162,95820.0,95819.0,0.053163]
[1733249249507,0.205442,95820.0,95819.0,0.053163]
[1733249249697,0.205442,95820.0,95819.0,0.001]
[1733249250306,0.3015243,95820.0,95819.0,0.001]
[1733249251210,0.30152437,95820.0,95819.0,0.001]
[1733249251698,0.059162,95820.0,95819.0,0.001]
[1733249251899,0.30152485,95820.0,95819.0,0.001]
[1733249252103,0.30152456,95820.0,95819.0,0.001]
[1733249254010,0.205442,95820.0,95819.0,0.001]
[1733249254308,0.30153298,95820.0,95819.0,0.001]
[1733249255196,0.41381487,95820.0,95819.0,0.001]
[1733249258007,0.052171,95804.0,95779.0,0.0015659]
[1733249258209,0.052184,95780.0,95779.0,0.0015659]
[1733249258414,0.202624,95780.0,95779.0,0.0015659]
[1733249258706,0.29873013,95780.0,95779.0,0.0015659]
[1733249259206,0.4110402,95780.0,95779.0,0.0015659]
[1733249259407,0.64201594,95780.0,95779.0,0.0015659]
[1733249259608,0.052196,95759.0,95758.0,0.00010455]
[1733249259807,0.29875462,95759.0,95758.0,0.00010455]
[1733249260599,0.202636,95759.0,95758.0,0.00010455]
[1733249260909,0.202636,95759.0,95758.0,0.00910455]
[1733249261104,0.29876577,95759.0,95758.0,0.01710455]
[1733249261615,0.14832577,95759.0,95758.0,0.01710455]
[1733249261808,0.24656977,95759.0,95758.0,0.06930055]
[1733249262203,0.15044,95759.0,95758.0,0.06930055]
[1733249263612,0.202636,95759.0,95758.0,0.06930055]
[1733249267012,0.202636,95759.0,95758.0,0.01710455]
[1733249267717,0.202636,95759.0,95742.0,0.02977278]
[1733249267718,0.052204,95743.0,95742.0,0.02977278]
[1733249268015,0.052208,95736.0,95735.0,1.50104]
[1733249268207,0.052208,95736.0,95735.0,1.5]
[1733249268407,0.51184001,95743.0,95734.0,0.3608]
[1733249268608,0.052209,95735.0,95734.0,0.3608]
[1733249269010,0.052209,95735.0,95734.0,0.413009]
[1733249269216,0.052209,95735.0,95734.0,0.3608]
[1733249270113,0.052209,95735.0,95734.0,0.3698]
[1733249270514,0.41412786,95735.0,95734.0,0.017]
[1733249272118,0.41512786,95735.0,95734.0,0.017]
[1733249272316,0.00211886,95735.0,95734.0,0.017]
[1733249272518,0.00211886,95735.0,95734.0,0.430009]
[1733249273011,0.00211886,95735.0,95734.0,1.930009]
[1733249274513,0.00211886,95735.0,95734.0,0.430009]
[1733249276919,0.00211886,95735.0,95734.0,0.492609]
[1733249278723,0.15052,95741.0,95734.0,0.492609]
[1733249278912,0.15052,95741.0,95740.0,0.052206]
[1733249279115,0.052209,95736.0,95735.0,0.052208]
[1733249279316,0.15052,95741.0,95734.0,0.01808]
[1733249279317,0.052209,95735.0,95734.0,0.01808]
[1733249279726,0.41309261,95735.0,95734.0,0.01808]
[1733249280116,0.41309261,95735.0,95734.0,0.017]
[1733249281820,0.41309261,95735.0,95734.0,0.008]
[1733249282217,0.052215,95724.0,95723.0,8.249e-05]
[1733249282419,0.563535,95724.0,95723.0,8.249e-05]
[1733249283724,0.563535,95724.0,95723.0,0.00308249]
[1733249285517,0.563535,95724.0,95723.0,4.9e-07]
[1733249285723,0.052223,95708.0,95700.0,0.1]
[1733249285930,0.052227,95701.0,95700.0,0.1]
[1733249288421,0.053227,95701.0,95700.0,0.109]
[1733249289015,0.054227,95701.0,95700.0,0.112]
[1733249289748,0.204827,95701.0,95700.0,0.112]
[1733249291129,0.204827,95701.0,95700.0,0.164228]
[1733249292030,0.054227,95701.0,95700.0,0.164228]
[1733249292226,0.204867,95701.0,95700.0,0.164228]
[1733249292428,0.002,95701.0,95700.0,0.164228]
[1733249292630,0.15064,95703.0,95702.0,0.052227]
[1733249292825,0.40548,95709.0,95708.0,0.052223]
[1733249293027,0.15064,95709.0,95708.0,0.052223]
[1733249293518,0.0104,95717.0,95716.0,0.052219]
[1733249293721,0.0104,95725.0,95724.0,0.052215]
[1733249293922,0.00156784,95732.0,95731.0,0.052211]
[1733249294121,0.05377784,95732.0,95726.0,0.3608]
[1733249294323,0.05377784,95732.0,95731.0,4e-05]
[1733249294829,0.23489045,95732.0,95731.0,4e-05]
[1733249295430,0.20441784,95732.0,95731.0,4e-05]
[1733249295618,0.20541784,95732.0,95731.0,4e-05]
[1733249296225,0.20741784,95732.0,95731.0,4e-05]
[1733249298326,0.20741784,95732.0,95731.0,0.052251]
[1733249298327,0.05677784,95732.0,95731.0,0.052251]
[1733249298530,0.20737784,95732.0,95731.0,0.052251]
[1733249298838,0.05677784,95732.0,95731.0,0.052251]
[1733249299035,0.08753912,95732.0,95731.0,0.052251]
[1733249299538,0.03532912,95732.0,95731.0,0.052251]
[1733249299924,0.08753912,95732.0,95731.0,0.052251]
[1733249300821,0.08653912,95732.0,95731.0,0.052251]
[1733249301029,0.08753912,95732.0,95731.0,0.052251]
[1733249301237,0.03332912,95732.0,95731.0,0.052251]
[1733249301630,0.03232912,95732.0,95731.0,0.052251]
[1733249301830,0.03232912,95732.0,95731.0,0.053251]
[1733249302024,0.00156784,95732.0,95731.0,0.053251]
[1733249302226,0.05377784,95732.0,95731.0,0.053251]
[1733249302834,0.00156784,95732.0,95731.0,0.053251]
[1733249303029,0.00156784,95732.0,95731.0,0.054251]
[1733249303533,0.00156784,95732.0,95731.0,0.055251]
[1733249303730,8.361e-05,95735.0,95734.0,0.052209]
[1733249303928,8.361e-05,95735.0,95734.0,0.413009]
[1733249304128,8.361e-05,95735.0,95734.0,0.413049]
[1733249305943,0.00108361,95735.0,95734.0,0.413049]
[1733249306236,0.05329261,95735.0,95734.0,0.052249]
[1733249306534,0.05329261,95735.0,95734.0,4e-05]
[1733249306728,0.05329261,95735.0,95734.0,0.00204]
[1733249307325,0.05229261,95735.0,95734.0,0.00204]
[1733249307525,0.05329261,95735.0,95734.0,0.00204]
[1733249307730,0.05329261,95735.0,95734.0,0.00304]
[1733249307939,0.05229261,95735.0,95734.0,0.00304]
[1733249308637,0.05729261,95735.0,95734.0,4e-05]
[1733249308943,0.06029261,95735.0,95734.0,4e-05]
[1733249309742,0.21089261,95735.0,95734.0,4e-05]
[1733249310133,0.15868361,95735.0,95734.0,0.052249]
[1733249310430,0.00708361,95735.0,95734.0,0.052249]
[1733249310832,0.00608361,95735.0,95734.0,0.052249]
[1733249311030,0.00408361,95735.0,95734.0,0.052249]
[1733249311228,0.05329261,95735.0,95734.0,0.052249]
[1733249311440,0.05429261,95735.0,95734.0,0.052249]
[1733249311829,0.05229261,95735.0,95734.0,0.052249]
[1733249312028,0.05229261,95735.0,95734.0,0.057249]
[1733249313535,0.05229261,95735.0,95734.0,0.055249]
[1733249313737,0.05229261,95735.0,95734.0,0.052249]
[1733249315128,0.05229261,95735.0,95734.0,0.053249]
[1733249315327,0.05229261,95735.0,95734.0,0.00104]
[1733249315528,0.05229261,95735.0,95734.0,4e-05]
[1733249316638,0.05329261,95735.0,95734.0,4e-05]
[1733249317140,0.05429261,95735.0,95734.0,4e-05]
[1733249317541,0.05329261,95735.0,95734.0,4e-05]
[1733249317843,0.05729261,95735.0,95734.0,4e-05]
[1733249319834,0.05729261,95735.0,95734.0,0.052249]